bitfinex/quotes_SOLUSD_20251103
["timestamp","ask_amount","ask_price","bid_price","bid_amount"]
[1762203015081,0.68,165.06,165.01,116.43920204]
[1762203015781,11.14843161,165.04,165.01,116.43920204]
[1762203016173,11.82843161,165.04,165.01,116.43920204]
[1762203016876,21.272,165.04,165.01,116.43920204]
[1762203017087,32.56259318,165.04,165.03,1e-08]
[1762203017264,0.14216157,165.03,165.0,127.86356939]
[1762203017460,10.32075045,165.01,164.89,6.06462786]
[1762203017764,6.06268276,164.95,164.87,6.06538484]
[1762203017968,5.08929444,164.94,164.87,6.06538484]
[1762203018280,5.08929444,164.94,164.86,0.1]
[1762203018461,20.73416157,164.9,164.86,0.1]
[1762203018661,20.73416157,164.9,164.74,26.94102225]
[1762203018662,20.592,164.84,164.74,26.94102225]
[1762203018877,20.73416157,164.84,164.74,26.94102225]
[1762203019183,5.08929444,164.75,164.54,18.24873019]
[1762203019486,5.08929444,164.69,164.55,0.71]
[1762203019690,0.14216157,164.69,164.55,0.71]
[1762203019871,38.42323801,164.73,164.52,0.71]
[1762203020066,20.592,164.65,164.52,0.71]
[1762203020253,0.14216157,164.69,164.52,0.71]
[1762203020478,0.14216157,164.69,164.53,1.99999999]
[1762203020678,6.06910822,164.77,164.52,0.71]
[1762203020679,0.14216157,164.73,164.55,1.99999999]
[1762203020869,6.06856589,164.79,164.52,0.71]
[1762203021069,56.06790667,164.81,164.54,1.99999999]
[1762203021262,6.06735344,164.82,164.63,20.592]
[1762203021486,50.21324235,164.85,164.63,20.592]
[1762203021487,5.08929444,164.83,164.67,20.592]
[1762203021696,6.06521931,164.88,164.68,0.14216157]
[1762203021871,50.0,164.92,164.75,20.592]
[1762203021872,10.39272951,164.92,164.75,20.592]
[1762203022180,50.21324235,164.97,164.76,0.14216157]
[1762203022181,5.08929444,164.94,164.76,0.14216157]
[1762203022367,6.06277945,164.95,164.77,0.14216157]
[1762203022560,10.39272951,164.98,164.77,0.14216157]
[1762203022561,10.39272951,164.98,164.8,20.592]
[1762203022767,10.39272951,164.98,164.82,20.592]
[1762203022978,51.99999999,165.07,164.83,0.14216157]
[1762203023200,10.39272951,165.01,164.85,0.14216157]
[1762203023392,0.95539004,165.15,164.85,0.14216157]
[1762203023393,30.27403707,165.16,164.85,9.93098926]
[1762203023592,30.27403707,165.16,164.84,0.71]
[1762203023593,50.0,165.09,164.86,0.71]
[1762203023891,10.39272951,165.08,164.88,21.22755943]
[1762203024198,5.08929444,165.03,164.88,21.22755943]
[1762203024371,7.4209936,165.03,164.89,0.71]
[1762203024882,20.592,164.99,164.89,0.71]
[1762203025182,7.4209936,165.02,164.89,0.71]
[1762203025387,13.48115444,165.02,164.9,21.22498483]
[1762203025594,20.592,164.99,164.9,21.22498483]
[1762203025762,7.4209936,165.01,164.91,0.71]
[1762203025969,20.592,164.96,164.85,0.71]
[1762203026298,0.14216157,164.95,164.86,0.71]
[1762203026498,7.4209936,164.91,164.86,0.71]
[1762203026703,20.592,164.94,164.86,0.71]
[1762203026704,7.4209936,164.92,164.86,0.71]
[1762203026994,7.4209936,164.87,164.81,0.71]
[1762203027202,0.14216157,164.9,164.81,0.71]
[1762203027203,28.0129936,164.89,164.81,0.71]
[1762203027369,20.592,164.89,164.82,6.06722485]
[1762203027765,34.07766827,164.89,164.81,0.71]
[1762203028075,34.07773378,164.89,164.81,6.77757517]
[1762203028585,2.41846483,164.96,164.82,0.69]
[1762203028769,7.4209936,164.99,164.85,0.14216157]
[1762203028977,28.0129936,164.98,164.85,0.14216157]
[1762203029181,7.4209936,164.98,164.86,0.69]
[1762203029382,34.07434261,164.98,164.87,21.22884696]
[1762203029567,6.0608003,165.0,164.87,21.22884696]
[1762203029766,7.4209936,164.99,164.88,0.69]
[1762203029966,28.0129936,164.99,164.88,0.69]
[1762203030196,7.4209936,164.96,164.88,0.69]
[1762203030768,7.4209936,164.95,164.88,0.69]
[1762203031602,7.4209936,164.94,164.88,0.69]
[1762203031782,7.4209936,164.89,164.7,1.99999999]
[1762203031978,7.4209936,164.91,164.74,9.78882769]
[1762203032175,20.592,164.92,164.78,9.78882769]
[1762203032379,7.4209936,164.89,164.79,0.69]
[1762203032922,28.0129936,164.92,164.8,0.14216157]
[1762203033104,7.4209936,164.95,164.82,0.14216157]
[1762203033280,7.4209936,164.9,164.83,0.68]
[1762203033479,13.4857368,164.89,164.83,0.68]
[1762203033678,7.4209936,164.84,164.79,0.68]
[1762203033979,7.4209936,164.82,164.79,0.68]
[1762203034180,7.4209936,164.8,164.72,6.7509082]
[1762203034381,20.592,164.83,164.73,0.68]
[1762203034382,7.4209936,164.78,164.73,0.68]
[1762203034586,7.4209936,164.77,164.73,0.68]
[1762203034780,7.4209936,164.78,164.73,0.68]
[1762203035897,6.06847232,164.79,164.73,6.75049582]
[1762203036120,7.4209936,164.8,164.73,6.75049582]
[1762203036410,7.4209936,164.76,164.69,0.68]
[1762203036577,7.4209936,164.75,164.69,0.68]
[1762203037290,7.4209936,164.76,164.69,0.68]
[1762203037503,7.4209936,164.73,164.65,0.68]
[1762203037712,7.4209936,164.74,164.68,6.0723828]
[1762203037910,6.06942527,164.77,164.61,30.37326583]
[1762203038204,7.4209936,164.76,164.69,0.68]
[1762203038382,7.4209936,164.77,164.69,0.68]
[1762203038787,26.6607287,164.78,164.69,0.68]
[1762203039098,7.4209936,164.75,164.69,0.68]
[1762203039407,7.4209936,164.74,164.69,0.68]
[1762203039697,7.4209936,164.73,164.65,6.75348777]
[1762203039911,20.592,164.8,164.67,0.68]
[1762203040086,7.4209936,164.75,164.67,0.68]
[1762203040399,7.4209936,164.74,164.67,0.68]
[1762203041203,7.4209936,164.75,164.67,0.68]
[1762203041711,7.4209936,164.77,164.68,6.0723828]
[1762203041877,7.4209936,164.79,164.69,0.68]
[1762203042081,51.99999999,164.93,164.69,0.68]
[1762203042311,25.09061148,164.92,164.7,9.93098926]
[1762203042513,25.09061148,164.92,164.69,0.68]
[1762203042514,7.4209936,164.9,164.75,20.592]
[1762203042683,6.06354596,164.92,164.75,20.592]
[1762203042684,7.4209936,164.91,164.75,20.592]
[1762203042878,7.4209936,164.9,164.76,0.68]
[1762203043086,6.06354596,164.92,164.76,0.68]
[1762203043394,7.4209936,164.89,164.77,21.24173089]
[1762203043596,7.4209936,164.87,164.78,0.68]
[1762203043779,7.4209936,164.9,164.78,0.68]
[1762203043979,35.7508649,164.92,164.78,0.68]
[1762203044198,7.4209936,164.91,164.78,0.68]
[1762203044405,43.1718585,164.92,164.78,0.68]
[1762203044593,7.4209936,164.92,164.78,0.68]
[1762203044786,6.93395048,165.03,164.8,20.592]
[1762203044986,6.26256441,164.95,164.81,0.14216157]
[1762203045194,7.4209936,164.92,164.81,0.68]
[1762203045383,7.4209936,164.91,164.81,0.68]
[1762203045605,7.4209936,164.92,164.82,6.06722485]
[1762203045901,28.64374747,164.92,164.81,6.74756658]
[1762203046208,7.4209936,164.91,164.82,0.68]
[1762203046613,21.22275387,164.92,164.82,0.68]
[1762203046808,6.06321171,164.93,164.82,0.68]
[1762203047215,6.0628581,164.94,164.82,0.68]
[1762203047596,21.21988489,164.94,164.83,21.23399866]
[1762203047789,28.64087849,164.94,164.83,21.23399866]
[1762203047999,28.64087849,164.94,164.84,0.68]
[1762203048208,7.4209936,164.92,164.84,0.68]
[1762203048490,6.0628581,164.94,164.84,0.68]
[1762203048995,28.64087849,164.94,164.84,0.68]
[1762203049187,7.4209936,164.92,164.84,0.68]
[1762203049722,13.48447474,164.93,164.84,6.74618215]
[1762203050219,28.64242053,164.93,164.85,0.68]
[1762203051100,6.06348114,164.93,164.85,0.68]
[1762203051508,0.2,164.95,164.86,21.23013464]
[1762203052006,0.2,164.95,164.87,0.68]
[1762203053011,8.3755136,164.94,164.87,0.68]
[1762203053206,8.3755136,164.93,164.87,0.68]
[1762203053524,3.9131475,164.94,164.87,0.68]
[1762203053695,6.06317831,164.93,164.87,0.68]
[1762203054017,6.06317831,164.93,164.84,6.0663188]
[1762203054202,6.06317831,164.93,164.86,0.68]
[1762203054604,3.9131475,164.93,164.86,0.68]
[1762203054909,9.97600101,164.94,164.86,0.68]
[1762203055108,17.85853128,164.94,164.86,0.68]
[1762203055313,3.9131475,164.93,164.86,0.68]
[1762203055617,6.06354596,164.92,164.86,6.74540228]
[1762203055826,9.97640425,164.93,164.86,6.74540228]
[1762203056000,6.06325675,164.93,164.86,6.74540228]
[1762203056208,9.97640425,164.93,164.86,6.74540228]
[1762203056400,9.97640425,164.93,164.84,15.16622179]
[1762203056401,6.06325675,164.93,164.84,0.68]
[1762203056604,3.9131475,164.92,164.84,0.68]
[1762203057120,0.2,164.95,164.85,20.592]
[1762203057300,0.2,164.95,164.86,0.68]
[1762203057503,0.2,164.95,164.87,0.14216157]
[1762203057707,0.2,164.95,164.88,21.22755943]
[1762203058006,0.2,164.95,164.88,21.90755943]
[1762203058207,0.2,164.95,164.89,0.68]
[1762203059204,6.26247978,164.95,164.89,0.68]
[1762203059517,10.17562728,164.95,164.89,0.68]
[1762203059722,10.17564827,164.95,164.89,0.68]
[1762203059901,6.26250077,164.95,164.89,0.68]
[1762203060099,10.17564827,164.95,164.89,0.68]
[1762203060297,11.79567777,164.94,164.89,0.68]
[1762203060515,3.9131475,164.93,164.89,0.68]
[1762203060722,7.88253027,164.9,164.85,0.68]
[1762203060910,7.88253027,164.86,164.75,21.24430955]
[1762203061109,11.79567777,164.85,164.76,0.68]
[1762203061308,3.9131475,164.84,164.76,0.68]
[1762203061514,7.88253027,164.86,164.76,0.68]
[1762203061715,7.88253027,164.86,164.77,21.24173089]
[1762203061716,3.9131475,164.85,164.77,21.24173089]
[1762203062149,3.9131475,164.85,164.69,1.99999999]
[1762203062150,7.88253027,164.83,164.78,0.68]
[1762203062322,7.88253027,164.8,164.68,6.7323828]
[1762203062644,7.88253027,164.78,164.68,21.9133398]
[1762203062935,3.9131475,164.82,164.69,0.66]
[1762203063131,7.88253027,164.82,164.69,0.66]
[1762203063428,7.88253027,164.77,164.69,0.66]
[1762203063624,7.88253027,164.76,164.69,0.66]
[1762203063816,7.88253027,164.76,164.69,21.91198014]
[1762203064024,7.88253027,164.77,164.69,21.91198014]
[1762203064235,7.88253027,164.77,164.7,0.66]
[1762203064431,7.88253027,164.76,164.7,0.66]
[1762203064624,7.88253027,164.75,164.7,0.66]
[1762203064830,3.94358006,164.78,164.7,0.66]
[1762203065031,6.06605417,164.86,164.72,20.592]
[1762203065211,10.01427848,164.87,164.72,20.592]
[1762203065412,7.88253027,164.86,164.73,0.66]
[1762203065614,3.94881439,164.85,164.73,0.66]
[1762203065922,6.06648871,164.84,164.74,21.24559911]
[1762203066135,3.94881439,164.85,164.74,6.07017117]
[1762203066438,13.9486561,164.85,164.75,0.66]
[1762203066740,3.94881439,164.84,164.75,0.66]
[1762203067323,7.88253027,164.81,164.75,0.66]
[1762203067519,7.88253027,164.8,164.75,0.66]
[1762203067717,3.94881439,164.83,164.76,6.06943432]
[1762203067934,6.5874233,164.91,164.76,6.06943432]
[1762203067935,3.94881439,164.87,164.76,6.06943432]
[1762203068140,7.88253027,164.88,164.77,0.66]
[1762203068436,8.38889904,164.84,164.77,0.66]
[1762203068829,8.38889904,164.86,164.77,0.66]
[1762203069146,3.94881439,164.87,164.77,0.66]
[1762203069632,3.94881439,164.88,164.77,0.66]
[1762203069826,6.06538484,164.87,164.78,21.24044179]
[1762203070253,8.38889904,164.85,164.79,0.66]
[1762203070623,3.94881439,164.86,164.76,0.66]
[1762203070874,20.592,164.84,164.72,0.66]
[1762203071150,8.38889904,164.74,164.68,0.66]
[1762203071322,8.38889904,164.76,164.68,6.7323828]
[1762203071520,3.94881439,164.79,164.68,6.7323828]
[1762203071521,8.38889904,164.77,164.68,6.7323828]
[1762203071840,20.592,164.84,164.69,0.66]
[1762203072049,8.38889904,164.81,164.7,21.25075894]
[1762203072418,3.95588364,164.82,164.71,0.66]
[1762203072630,8.38889904,164.78,164.71,0.66]
[1762203072922,8.38889904,164.81,164.71,0.66]
[1762203073620,3.95588364,164.82,164.71,0.66]
[1762203073841,8.38889904,164.81,164.71,0.66]
[1762203074143,8.38889904,164.87,164.72,21.24817871]
[1762203074440,12.3464597,164.88,164.75,20.592]
[1762203074641,3.95756066,164.87,164.75,20.592]
[1762203074823,3.95756066,164.87,164.76,0.66]
[1762203075024,8.38889904,164.88,164.76,0.66]
[1762203075425,6.06538484,164.87,164.77,21.24173089]
[1762203075635,3.95756066,164.88,164.77,21.24173089]
[1762203075837,3.95756066,164.89,164.78,0.66]
[1762203076039,6.06417834,164.91,164.78,0.66]
[1762203076040,14.45228093,164.93,164.78,0.66]
[1762203076239,0.2,164.95,164.81,0.14216157]
[1762203076439,0.2,164.95,164.81,9.93098926]
[1762203076647,0.2,164.95,164.82,0.66]
[1762203077037,8.38889904,164.93,164.82,0.66]
[1762203077547,12.35085037,164.94,164.83,21.23399866]
[1762203077738,8.38889904,164.94,164.83,21.23399866]
[1762203077926,8.38889904,164.91,164.78,6.06869765]
[1762203078126,8.38889904,164.89,164.8,0.66]
[1762203078349,8.38889904,164.9,164.8,0.66]
[1762203079159,14.45351975,164.9,164.81,21.23657544]
[1762203079334,20.592,164.91,164.81,21.23657544]
[1762203079335,35.04483287,164.91,164.81,21.23657544]
[1762203079549,8.38889904,164.89,164.81,6.72759298]
[1762203079754,41.81571795,164.91,164.81,6.72759298]
[1762203079755,8.38889904,164.88,164.81,6.72759298]
[1762203080242,35.04483287,164.91,164.82,0.66]
[1762203080624,8.38889904,164.88,164.81,6.06759298]
[1762203081038,3.96310928,164.9,164.79,0.66]
[1762203081261,14.45508613,164.85,164.79,0.66]
[1762203081467,8.38889904,164.84,164.79,0.66]
[1762203081624,8.38889904,164.84,164.67,2.09999999]
[1762203081625,8.38889904,164.84,164.76,0.66]
[1762203082529,8.38889904,164.86,164.76,0.66]
[1762203082752,8.38889904,164.85,164.76,0.66]
[1762203083227,14.45535733,164.85,164.77,6.06906597]
[1762203083431,8.38889904,164.85,164.77,6.06906597]
[1762203083748,2.64800997,164.89,164.77,6.06906597]
[1762203083749,8.38889904,164.84,164.78,0.66]
[1762203084149,8.38889904,164.83,164.78,0.66]
[1762203084350,8.38889904,164.84,164.78,0.66]
[1762203084671,28.98089904,164.86,164.78,0.66]
[1762203084861,8.38889904,164.84,164.78,0.66]
[1762203085153,8.38889904,164.85,164.78,0.66]
[1762203085343,14.45520986,164.85,164.79,6.06832938]
[1762203085536,8.38889904,164.81,164.75,0.66]
[1762203085850,8.38889904,164.8,164.75,0.66]
[1762203086062,8.96848377,164.83,164.75,0.66]
[1762203086063,8.38889904,164.79,164.75,0.66]
[1762203086263,3.97409497,164.82,164.71,0.66]
[1762203086557,8.38889904,164.79,164.71,0.66]
[1762203086795,8.38889904,164.76,164.71,0.66]
[1762203087054,8.38889904,164.72,164.67,0.1]
[1762203087255,8.38889904,164.7,164.67,0.1]
[1762203087461,14.46061908,164.7,164.67,0.1]
[1762203087644,8.38889904,164.68,164.67,0.1]
[1762203088059,28.98089904,164.68,164.67,0.1]
[1762203088250,39.42403157,164.68,164.67,1e-08]
[1762203088461,12.02586146,164.68,164.67,1e-08]
[1762203088683,20.592,164.65,164.53,0.67]
[1762203088962,7.91385759,164.59,164.53,6.74789771]
[1762203089266,7.91385759,164.57,164.5,0.67]
[1762203089470,6.07674045,164.57,164.39,0.048]
[1762203089684,7.91385759,164.57,164.4,0.67]
[1762203089976,7.91385759,164.56,164.4,0.67]
[1762203090145,7.91385759,164.57,164.4,0.67]
[1762203090347,20.592,164.6,164.4,0.67]
[1762203090348,7.91385759,164.55,164.4,0.67]
[1762203090546,7.91385759,164.52,164.4,0.67]
[1762203090747,9.70372951,164.56,164.4,0.67]
[1762203090971,7.91385759,164.62,164.41,1.99999999]
[1762203091155,20.592,164.65,164.44,11.93098925]
[1762203091350,20.592,164.65,164.38,101.70945369]
[1762203091351,7.91385759,164.61,164.48,21.27918287]
[1762203091767,7.91385759,164.61,164.49,0.67]
[1762203092582,9.70372951,164.65,164.5,0.14216157]
[1762203092786,17.6175871,164.65,164.51,20.592]
[1762203092979,7.91385759,164.64,164.51,21.272]
[1762203093283,23.6911802,164.65,164.52,0.68]
[1762203093481,7.91385759,164.62,164.53,21.27271622]
[1762203093653,7.91385759,164.63,164.53,21.27271622]
[1762203093858,7.91385759,164.61,164.53,6.75791892]
[1762203094379,20.73416157,164.68,164.54,0.68]
[1762203094576,28.50585759,164.63,164.54,0.68]
[1762203094755,20.592,164.63,164.54,0.68]
[1762203095352,15.17906273,164.71,164.55,21.27013065]
[1762203095552,7.91385759,164.65,164.55,21.27013065]
[1762203095756,3.17614156,164.69,164.56,0.68]
[1762203096386,7.91385759,164.71,164.56,0.68]
[1762203096572,28.50585759,164.71,164.56,0.68]
[1762203096784,7.91385759,164.67,164.56,0.68]
[1762203096987,3.31789298,164.71,164.56,0.68]
[1762203097185,7.91385759,164.67,164.56,0.68]
[1762203097390,7.91385759,164.68,164.57,6.07644163]
[1762203097588,26.66413287,164.69,164.57,21.26754571]
[1762203097780,7.91385759,164.66,164.58,0.68]
[1762203097966,20.592,164.67,164.58,0.68]
[1762203098167,28.50585759,164.67,164.58,0.68]
[1762203098364,20.592,164.67,164.58,0.68]
[1762203098786,7.91385759,164.65,164.58,0.68]
[1762203098982,20.592,164.67,164.58,0.68]
[1762203099183,7.91385759,164.64,164.58,0.68]
[1762203099380,20.592,164.67,164.58,0.68]
[1762203099381,7.91385759,164.65,164.58,0.68]
[1762203099581,6.07377451,164.65,164.59,6.07570326]
[1762203099784,3.17573141,164.71,164.59,6.07570326]
[1762203100007,3.17573141,164.71,164.6,0.68]
[1762203100008,17.16102162,164.71,164.6,0.68]
[1762203100190,31.681589,164.71,164.6,0.68]
[1762203100387,37.75299842,164.71,164.6,0.68]
[1762203100579,7.91385759,164.69,164.6,0.68]
[1762203101102,37.75299842,164.71,164.6,0.68]
[1762203101373,7.91385759,164.72,164.6,0.68]
[1762203101598,34.57786293,164.7,164.6,0.68]
[1762203101779,7.91385759,164.67,164.6,0.68]
[1762203101981,7.91385759,164.68,164.6,6.75526346]
[1762203102591,20.592,164.69,164.61,0.68]
[1762203102897,7.91385759,164.71,164.61,0.68]
[1762203103206,7.91385759,164.7,164.61,0.68]
[1762203103367,7.91385759,164.69,164.61,0.68]
[1762203103700,34.577503,164.7,164.62,6.07459603]
[1762203104085,20.592,164.7,164.63,0.68]
[1762203104279,17.15997689,164.73,164.63,0.68]
[1762203104483,7.91385759,164.72,164.63,0.68]
[1762203104994,32.33632606,164.73,164.63,0.68]
[1762203105292,7.91385759,164.72,164.63,0.68]
[1762203105771,6.07105413,164.72,164.64,21.25850339]
[1762203105975,7.91385759,164.74,164.64,21.25850339]
[1762203106174,13.98442455,164.73,164.65,0.68]
[1762203106475,7.91385759,164.74,164.65,0.68]
[1762203106675,11.84637724,164.74,164.65,0.68]
[1762203106875,7.91385759,164.73,164.65,0.68]
[1762203107684,6.07053967,164.73,164.66,6.07312036]
[1762203107978,7.91385759,164.72,164.65,6.75347861]
[1762203108187,7.91385759,164.72,164.65,0.68]
[1762203108375,29.16074643,164.73,164.65,0.68]
[1762203108974,37.75093713,164.75,164.65,21.93718781]
[1762203109188,26.66215226,164.75,164.65,21.93718781]
[1762203109490,34.57600985,164.75,164.66,0.68]
[1762203109691,34.57600985,164.75,164.66,6.75291514]
[1762203109884,20.592,164.74,164.66,21.93571606]
[1762203110084,20.592,164.74,164.67,0.68]
[1762203110487,21.31659088,164.8,164.67,0.68]
[1762203110686,20.592,164.76,164.67,0.68]
[1762203111414,32.32737983,164.79,164.67,0.68]
[1762203111594,3.93769577,164.78,164.68,21.2533398]
[1762203111820,7.91385759,164.75,164.66,0.68]
[1762203112001,20.592,164.75,164.69,0.68]
[1762203112297,11.08802091,164.79,164.69,0.68]
[1762203112477,18.29911642,164.79,164.69,0.68]
[1762203112677,34.95285171,164.79,164.69,0.68]
[1762203112895,5.11833859,164.77,164.69,0.68]
[1762203113288,9.05657305,164.78,164.69,0.68]
[1762203113594,6.06906597,164.77,164.7,6.07164541]
[1762203113809,11.18740456,164.77,164.7,6.75164541]
[1762203113988,5.11833859,164.75,164.67,6.07275156]
[1762203114200,25.71033859,164.74,164.68,0.68]
[1762203114379,20.592,164.69,164.6,0.68]
[1762203114579,20.592,164.74,164.61,0.68]
[1762203114580,0.14216157,164.73,164.61,0.68]
[1762203114884,0.14216157,164.74,164.61,0.68]
[1762203115080,5.11833859,164.71,164.61,0.68]
[1762203115479,5.11833859,164.69,164.61,0.68]
[1762203115681,6.0723828,164.68,164.62,6.07459603]
[1762203116085,6.0723828,164.68,164.62,6.75459603]
[1762203116397,6.0720806,164.69,164.62,6.75459603]
[1762203116608,20.592,164.68,164.62,6.75459603]
[1762203116900,25.71033859,164.68,164.6,6.75531118]
[1762203117200,25.71033859,164.66,164.59,6.07560032]
[1762203117374,5.11833859,164.61,164.56,0.68]
[1762203117797,11.19307492,164.62,164.57,6.07644163]
[1762203118098,5.11833859,164.61,164.56,0.68]
[1762203118278,11.19307492,164.62,164.56,6.75674584]
[1762203118487,6.07473633,164.62,164.56,6.75674584]
[1762203118816,11.19307492,164.62,164.56,6.75674584]
[1762203119108,5.11833859,164.63,164.56,6.75674584]
[1762203119314,5.11833859,164.63,164.56,21.94877306]
[1762203119484,5.11833859,164.62,164.56,21.94877306]
[1762203119998,25.71033859,164.66,164.57,0.68]
[1762203120206,0.14216157,164.7,164.57,0.68]
[1762203120207,15.17986148,164.7,164.57,0.68]
[1762203120403,11.19035267,164.69,164.57,0.68]
[1762203120708,5.11833859,164.69,164.57,0.68]
[1762203120898,5.11833859,164.7,164.57,0.68]
[1762203121102,11.18967647,164.71,164.57,0.68]
[1762203121315,15.17436506,164.76,164.6,20.73416157]
[1762203121536,11.18747985,164.77,164.6,20.73416157]
[1762203121675,5.11833859,164.74,164.61,0.68]
[1762203121882,5.11833859,164.77,164.63,21.25979468]
[1762203122480,5.11833859,164.77,164.64,0.68]
[1762203122998,5.11833859,164.76,164.64,0.68]
[1762203123203,5.11833859,164.75,164.64,0.68]
[1762203123402,5.11833859,164.72,164.64,0.68]
[1762203123587,20.592,164.75,164.64,0.68]
[1762203123898,26.66193136,164.75,164.65,6.07348921]
[1762203124203,31.78026995,164.75,164.65,21.25721225]
[1762203124400,31.78026995,164.75,164.66,0.66]
[1762203124782,26.66180484,164.75,164.66,0.66]
[1762203125103,5.11833859,164.77,164.66,0.66]
[1762203125483,9.07731366,164.77,164.66,0.66]
[1762203126092,11.18777291,164.76,164.66,6.73310132]
[1762203126295,5.11833859,164.7,164.63,0.66]
[1762203126587,5.11833859,164.7,164.53,6.73791892]
[1762203126588,20.592,164.7,164.53,6.73791892]
[1762203126801,20.592,164.7,164.54,9.78882769]
[1762203127016,5.11833859,164.69,164.54,0.66]
[1762203127184,5.11833859,164.67,164.55,0.66]
[1762203127699,25.71033859,164.73,164.59,0.14216157]
[1762203127920,20.592,164.71,164.6,0.66]
[1762203128208,5.11833859,164.74,164.61,21.26237773]
[1762203128209,6.0702864,164.74,164.61,21.26237773]
[1762203128388,3.9713642,164.77,164.62,0.80216157]
[1762203128593,20.592,164.77,164.62,0.80216157]
[1762203128897,3.9713642,164.76,164.62,0.80216157]
[1762203129096,5.11833859,164.75,164.62,0.66]
[1762203129410,5.11833859,164.73,164.62,0.66]
[1762203129612,24.56470461,164.75,164.62,0.66]
[1762203129916,9.0910432,164.74,164.62,0.66]
[1762203130211,3.97270461,164.74,164.63,51.63092995]
[1762203130408,5.11833859,164.75,164.63,51.63092995]
[1762203130610,5.11833859,164.74,164.64,0.66]
[1762203131119,9.0910432,164.76,164.64,0.66]
[1762203131290,5.11833859,164.74,164.64,0.66]
[1762203131495,5.11833859,164.73,164.64,0.66]
[1762203131900,47.61833859,164.75,164.64,0.66]
[1762203132103,3.97270461,164.74,164.64,0.66]
[1762203132300,3.97270461,164.74,164.65,51.62465834]
[1762203132503,6.06986496,164.75,164.65,51.62465834]
[1762203132701,6.06986496,164.75,164.66,0.66]
[1762203132994,3.97270461,164.76,164.66,0.66]
[1762203133304,5.11833859,164.75,164.66,0.66]
[1762203133507,5.11833859,164.73,164.66,0.66]
[1762203134020,5.11833859,164.74,164.66,0.66]
[1762203134220,6.07053967,164.73,164.67,6.07275156]
[1762203134392,6.07053967,164.73,164.66,0.66]
[1762203134588,5.11833859,164.74,164.66,6.73309028]
[1762203134793,5.11833859,164.73,164.66,21.9158912]
[1762203135014,5.11833859,164.75,164.67,0.66]
[1762203135395,6.06986753,164.75,164.67,0.66]
[1762203135618,15.16053018,164.76,164.67,0.66]
[1762203135817,10.04219159,164.76,164.67,0.66]
[1762203136006,10.04219173,164.76,164.67,0.66]
[1762203136202,6.06948712,164.76,164.68,21.2533398]
[1762203136523,6.06948712,164.76,164.69,0.66]
[1762203136896,5.11833859,164.75,164.68,6.0723828]
[1762203137095,5.11833859,164.74,164.66,6.73312036]
[1762203137319,5.11833859,164.72,164.65,6.07340164]
[1762203137515,5.11833859,164.72,164.65,6.73340164]
[1762203138013,5.11833859,164.73,164.65,6.73340164]
[1762203138322,6.0709082,164.72,164.65,6.73340164]
[1762203138736,6.0709082,164.72,164.65,21.25712468]
[1762203138897,9.24283087,164.79,164.66,0.66]
[1762203139210,29.83483087,164.79,164.66,0.66]
[1762203139412,3.98665118,164.78,164.66,0.66]
[1762203139730,6.5874233,164.87,164.66,0.66]
[1762203139731,4.18977248,164.86,164.75,0.14216157]
[1762203139900,0.2,164.86,164.76,0.66]
[1762203140201,0.2,164.86,164.77,21.24173089]
[1762203140401,0.2,164.86,164.78,0.66]
[1762203141731,5.11833859,164.85,164.78,0.66]
[1762203141932,6.2658437,164.86,164.78,0.66]
[1762203141933,0.2,164.86,164.78,0.66]
[1762203142446,0.2,164.86,164.79,6.06832938]
[1762203142610,6.26588607,164.86,164.79,21.23915285]
[1762203142811,6.26588607,164.86,164.8,0.66]
[1762203143736,0.2,164.86,164.8,0.66]
[1762203144323,0.2,164.86,164.81,6.06759298]
[1762203144715,0.2,164.86,164.82,0.66]
[1762203145627,6.26585356,164.86,164.82,0.66]
[1762203146139,5.11833859,164.84,164.78,6.72869765]
[1762203146318,6.26575424,164.86,164.78,6.72869765]
[1762203146639,6.26575424,164.86,164.79,0.66]